Workbook

Sheet 行政后勤+临床医药技岗位
A1: 中山大学附属第一医院贵州医院 2023年公开招聘事业编制工作人员总成绩及进入体检环节人员名单（除护理岗外其它岗位）
A2: 序号 | B2: 抽签号 | C2: 姓名 | D2: 准考证号 | E2: 岗位名称 | F2: 岗位代码 | G2: 笔试成绩 | H2: 笔试成绩 （占比40%） | I2: 面试成绩 | J2: 面试成绩 （占比60%） | K2: 总成绩 | L2: 排名 | M2: 是否进入体检环节
A3: 1 | B3: 8 | C3: 申飞 | D3: 52000205822 | E3: 内分泌科医师 | F3: 01 | G3: 80 | H3: =G3*0.4 -> 32.00 | I3: 89.66 | J3: =I3*0.6 -> 53.80 | K3: =J3+H3 -> 85.80 | L3: 1 | M3: 是
A4: 2 | B4: 7 | C4: 曾小梅 | D4: 52000205742 | E4: 内分泌科医师 | F4: 01 | G4: 80 | H4: 32.00 | I4: 89.00 | J4: 53.40 | K4: 85.40 | L4: 2 | M4: 是
A5: 3 | B5: 5 | C5: 蔡春仙 | D5: 52000205749 | E5: 内分泌科医师 | F5: 01 | G5: 78 | H5: 31.20 | I5: 88.33 | J5: 53.00 | K5: 84.20 | L5: 3 | M5: 是
A6: 4 | B6: 2 | C6: 雷珍 | D6: 52000205701 | E6: 内分泌科医师 | F6: 01 | G6: 70 | H6: 28.00 | I6: 90.00 | J6: 54.00 | K6: 82.00 | L6: 4 | M6: 是
A7: 5 | B7: 3 | C7: 周梅 | D7: 52000205718 | E7: 内分泌科医师 | F7: 01 | G7: 72 | H7: 28.80 | I7: 75.67 | J7: 45.40 | K7: 74.20
A8: 6 | B8: 4 | C8: 徐婷 | D8: 52000205804 | E8: 内分泌科医师 | F8: 01 | G8: 62 | H8: 24.80 | I8: 78.67 | J8: 47.20 | K8: 72.00
A9: 7 | B9: 1 | C9: 卢定铄 | D9: 52000205755 | E9: 内分泌科医师 | F9: 01 | G9: 66 | H9: 26.40 | I9: 75.33 | J9: 45.20 | K9: 71.60
A10: 8 | B10: 6 | C10: 李艳平 | D10: 52000205732 | E10: 内分泌科医师 | F10: 01 | G10: 62 | H10: 24.80 | I10: 76.33 | J10: 45.80 | K10: 70.60
A11: 9 | B11: 2 | C11: 漆沙沙 | D11: 52000205816 | E11: 血液科医师 | F11: 02 | G11: 74 | H11: 29.60 | I11: 88.67 | J11: 53.20 | K11: 82.80 | L11: 1 | M11: 是
A12: 10 | B12: 3 | C12: 赵亮 | D12: 52000205807 | E12: 血液科医师 | F12: 02 | G12: 74 | H12: 29.60 | I12: 79.33 | J12: 47.60 | K12: 77.20
A13: 11 | B13: 1 | C13: 李昕睿 | D13: 52000205712 | E13: 血液科医师 | F13: 02 | G13: 64 | H13: 25.60 | I13: 78.67 | J13: 47.20 | K13: 72.80
A14: 12 | B14: 4 | C14: 秦韬 | D14: 52000205818 | E14: 心血管内科医师 | F14: 03 | G14: 82 | H14: 32.80 | I14: 89.00 | J14: 53.40 | K14: 86.20 | L14: 1 | M14: 是
A15: 13 | B15: 7 | C15: 莫睿 | D15: 52000205826 | E15: 心血管内科医师 | F15: 03 | G15: 82 | H15: 32.80 | I15: 88.00 | J15: 52.80 | K15: 85.60 | L15: 2 | M15: 是
A16: 14 | B16: 8 | C16: 余华敏 | D16: 52000205702 | E16: 心血管内科医师 | F16: 03 | G16: 86 | H16: 34.40 | I16: 85.00 | J16: 51.00 | K16: 85.40 | L16: 3 | M16: 是
A17: 15 | B17: 2 | C17: 陈春雨 | D17: 52000205704 | E17: 心血管内科医师 | F17: 03 | G17: 76 | H17: 30.40 | I17: 85.33 | J17: 51.20 | K17: 81.60 | L17: 4 | M17: 是
A18: 16 | B18: 1 | C18: 万宇 | D18: 52000205706 | E18: 心血管内科医师 | F18: 03 | G18: 76 | H18: 30.40 | I18: 77.67 | J18: 46.60 | K18: 77.00
A19: 17 | B19: 6 | C19: 陶大运 | D19: 52000205814 | E19: 心血管内科医师 | F19: 03 | G19: 62 | H19: 24.80 | I19: 76.00 | J19: 45.60 | K19: 70.40
A20: 18 | B20: 缺考 | C20: 陈真 | D20: 52000205805 | E20: 心血管内科医师 | F20: 03 | G20: 70 | H20: 28.00 | I20: 缺考 | J20: 缺考 | K20: =H20 -> 28.00
A21: 19 | B21: 缺考 | C21: 曾青燚 | D21: 52000205759 | E21: 心血管内科医师 | F21: 03 | G21: 70 | H21: 28.00 | I21: 缺考 | J21: 缺考 | K21: =H21 -> 28.00
A22: 20 | B22: 1 | C22: 王典 | D22: 52000205812 | E22: 呼吸与危重症医学科医师 | F22: 04 | G22: 74 | H22: 29.60 | I22: 87.33 | J22: =I22*0.6 -> 52.40 | K22: =J22+H22 -> 82.00 | L22: 1 | M22: 是
A23: 21 | B23: 3 | C23: 韦成丽 | D23: 52000205726 | E23: 呼吸与危重症医学科医师 | F23: 04 | G23: 62 | H23: 24.80 | I23: 85.67 | J23: =I23*0.6 -> 51.40 | K23: =J23+H23 -> 76.20 | L23: 2 | M23: 是
A24: 22 | B24: 4 | C24: 陈琳 | D24: 52000205747 | E24: 呼吸与危重症医学科医师 | F24: 04 | G24: 62 | H24: 24.80 | I24: 79.33 | J24: =I24*0.6 -> 47.60 | K24: =J24+H24 -> 72.40
A25: 23 | B25: 缺考 | C25: 杨婷 | D25: 52000205721 | E25: 呼吸与危重症医学科医师 | F25: 04 | G25: 68 | H25: 27.20 | I25: 缺考 | J25: 缺考 | K25: =H25 -> 27.20
A26: 24 | B26: 8 | C26: 邓悦 | D26: 52000205738 | E26: 消化内科医师 | F26: 05 | G26: 84 | H26: 33.60 | I26: 90.67 | J26: =I26*0.6 -> 54.40 | K26: =J26+H26 -> 88.00 | L26: 1 | M26: 是
A27: 25 | B27: 9 | C27: 喻江南 | D27: 52000205735 | E27: 消化内科医师 | F27: 05 | G27: 82 | H27: 32.80 | I27: 88.33 | J27: 53.00 | K27: 85.80 | L27: 2 | M27: 是
A28: 26 | B28: 5 | C28: 杜新祝 | D28: 52000205727 | E28: 消化内科医师 | F28: 05 | G28: 78 | H28: 31.20 | I28: 87.00 | J28: 52.20 | K28: 83.40 | L28: 3 | M28: 是
A29: 27 | B29: 7 | C29: 李立 | D29: 52000205739 | E29: 消化内科医师 | F29: 05 | G29: 78 | H29: 31.20 | I29: 80.00 | J29: 48.00 | K29: 79.20
A30: 28 | B30: 4 | C30: 康珊珊 | D30: 52000205728 | E30: 消化内科医师 | F30: 05 | G30: 74 | H30: 29.60 | I30: 78.67 | J30: 47.20 | K30: 76.80
A31: 29 | B31: 1 | C31: 潘梦 | D31: 52000205730 | E31: 消化内科医师 | F31: 05 | G31: 70 | H31: 28.00 | I31: 75.00 | J31: 45.00 | K31: 73.00
A32: 30 | B32: 缺考 | C32: 祁定雯 | D32: 52000205708 | E32: 消化内科医师 | F32: 05 | G32: 82 | H32: 32.80 | I32: 缺考 | J32: 缺考 | K32: =H32 -> 32.80
A33: 31 | B33: 缺考 | C33: 杨奎娅 | D33: 52000205711 | E33: 消化内科医师 | F33: 05 | G33: 80 | H33: 32.00 | I33: 缺考 | J33: 缺考 | K33: =H33 -> 32.00
A34: 32 | B34: 缺考 | C34: 熊镜焰 | D34: 52000205716 | E34: 消化内科医师 | F34: 05 | G34: 66 | H34: 26.40 | I34: 缺考 | J34: 缺考 | K34: =H34 -> 26.40
A35: 33 | B35: 6 | C35: 何清云 | D35: 52000205729 | E35: 肾脏风湿免疫科医师 | F35: 06 | G35: 82 | H35: 32.80 | I35: 88.33 | J35: =I35*0.6 -> 53.00 | K35: =J35+H35 -> 85.80 | L35: 1 | M35: 是
A36: 34 | B36: 7 | C36: 宁小娅 | D36: 52000205719 | E36: 肾脏风湿免疫科医师 | F36: 06 | G36: 88 | H36: 35.20 | I36: 76.00 | J36: 45.60 | K36: 80.80 | L36: 2 | M36: 是
A37: 35 | B37: 3 | C37: 文青 | D37: 52000205810 | E37: 肾脏风湿免疫科医师 | F37: 06 | G37: 68 | H37: 27.20 | I37: 89.00 | J37: 53.40 | K37: 80.60
A38: 36 | B38: 2 | C38: 张娟 | D38: 52000205815 | E38: 肾脏风湿免疫科医师 | F38: 06 | G38: 84 | H38: 33.60 | I38: 74.67 | J38: 44.80 | K38: 78.40
A39: 37 | B39: 5 | C39: 都元洪 | D39: 52000205758 | E39: 肾脏风湿免疫科医师 | F39: 06 | G39: 74 | H39: 29.60 | I39: 78.33 | J39: 47.00 | K39: 76.60
A40: 38 | B40: 4 | C40: 罗鑫满 | D40: 52000205757 | E40: 肾脏风湿免疫科医师 | F40: 06 | G40: 68 | H40: 27.20 | I40: 79.67 | J40: 47.80 | K40: 75.00
A41: 39 | B41: 1 | C41: 李莲 | D41: 52000205806 | E41: 肾脏风湿免疫科医师 | F41: 06 | G41: 72 | H41: 28.80 | I41: 76.00 | J41: 45.60 | K41: 74.40
A42: 40 | B42: 2 | C42: 陈佳慧 | D42: 52000205703 | E42: 老年医学科医师 | F42: 07 | G42: 70 | H42: 28.00 | I42: 86.67 | J42: 52.00 | K42: 80.00 | L42: 1 | M42: 是
A43: 41 | B43: 1 | C43: 胡全 | D43: 52000205743 | E43: 老年医学科医师 | F43: 07 | G43: 62 | H43: 24.80 | I43: 86.33 | J43: 51.80 | K43: 76.60 | L43: 2 | M43: 是
A44: 42 | B44: 6 | C44: 梁大廷 | D44: 52000205526 | E44: 泌尿外科医师 | F44: 08 | G44: 70 | H44: 28.00 | I44: 88.33 | J44: 53.00 | K44: 81.00 | L44: 1 | M44: 是
A45: 43 | B45: 4 | C45: 朱砂 | D45: 52000205533 | E45: 泌尿外科医师 | F45: 08 | G45: 64 | H45: 25.60 | I45: 89.33 | J45: 53.60 | K45: 79.20 | L45: 2 | M45: 是
A46: 44 | B46: 3 | C46: 王崎旭 | D46: 52000205537 | E46: 泌尿外科医师 | F46: 08 | G46: 72 | H46: 28.80 | I46: 79.67 | J46: 47.80 | K46: 76.60
A47: 45 | B47: 5 | C47: 周子栋 | D47: 52000205540 | E47: 泌尿外科医师 | F47: 08 | G47: 70 | H47: 28.00 | I47: 79.00 | J47: 47.40 | K47: 75.40
A48: 46 | B48: 2 | C48: 杨登浩 | D48: 52000205508 | E48: 泌尿外科医师 | F48: 08 | G48: 68 | H48: 27.20 | I48: 78.67 | J48: 47.20 | K48: 74.40
A49: 47 | B49: 7 | C49: 杨萌 | D49: 52000205541 | E49: 泌尿外科医师 | F49: 08 | G49: 60 | H49: 24.00 | I49: 77.67 | J49: 46.60 | K49: 70.60
A50: 48 | B50: 1 | C50: 王增辉 | D50: 52000205630 | E50: 泌尿外科医师 | F50: 08 | G50: 60 | H50: 24.00 | I50: 75.67 | J50: 45.40 | K50: 69.40
A51: 49 | B51: 1 | C51: 曾科文 | D51: 52000205506 | E51: 血管外科医师 | F51: 10 | G51: 66 | H51: 26.40 | I51: 86.67 | J51: 52.00 | K51: 78.40 | L51: 1 | M51: 是
A52: 50 | B52: 1 | C52: 田佳禾 | D52: 52000205628 | E52: 甲状腺外科医师 | F52: 11 | G52: 62 | H52: 24.80 | I52: 90.67 | J52: 54.40 | K52: 79.20 | L52: 1 | M52: 是
A53: 51 | B53: 3 | C53: 王顺 | D53: 52000205612 | E53: 甲状腺外科医师 | F53: 11 | G53: 54 | H53: 21.60 | I53: 88.33 | J53: 53.00 | K53: 74.60 | L53: 2 | M53: 是
A54: 52 | B54: 2 | C54: 王云 | D54: 52000205538 | E54: 甲状腺外科医师 | F54: 11 | G54: 60 | H54: 24.00 | I54: 80.33 | J54: 48.20 | K54: 72.20
A55: 53 | B55: 缺考 | C55: 李佳林 | D55: 52000205606 | E55: 甲状腺外科医师 | F55: 11 | G55: 60 | H55: 24.00 | I55: 缺考 | J55: 缺考 | K55: =H55 -> 24.00
A56: 54 | B56: 缺考 | C56: 何虎 | D56: 52000205534 | E56: 甲状腺外科医师 | F56: 11 | G56: 56 | H56: 22.40 | I56: 缺考 | J56: 缺考 | K56: =H56 -> 22.40
A57: 55 | B57: 5 | C57: 张瑜娜 | D57: 52000205633 | E57: 乳腺外科医师 | F57: 12 | G57: 64 | H57: 25.60 | I57: 88.67 | J57: =I57*0.6 -> 53.20 | K57: =J57+H57 -> 78.80 | L57: 1 | M57: 是
A58: 56 | B58: 2 | C58: 李朝夕 | D58: 52000205546 | E58: 乳腺外科医师 | F58: 12 | G58: 60 | H58: 24.00 | I58: 90.00 | J58: 54.00 | K58: 78.00 | L58: 2 | M58: 是
A59: 57 | B59: 1 | C59: 文桑琳 | D59: 52000205551 | E59: 乳腺外科医师 | F59: 12 | G59: 64 | H59: 25.60 | I59: 77.00 | J59: 46.20 | K59: 71.80
A60: 58 | B60: 3 | C60: 梁超 | D60: 52000205601 | E60: 乳腺外科医师 | F60: 12 | G60: 66 | H60: 26.40 | I60: 75.33 | J60: 45.20 | K60: 71.60
A61: 59 | B61: 6 | C61: 曹菡 | D61: 52000205536 | E61: 乳腺外科医师 | F61: 12 | G61: 60 | H61: 24.00 | I61: 78.33 | J61: 47.00 | K61: 71.00
A62: 60 | B62: 4 | C62: 王玉莹 | D62: 52000205617 | E62: 乳腺外科医师 | F62: 12 | G62: 58 | H62: 23.20 | I62: 75.33 | J62: 45.20 | K62: 68.40
A63: 61 | B63: 7 | C63: 文倩倩 | D63: 52000205609 | E63: 乳腺外科医师 | F63: 12 | G63: 58 | H63: 23.20 | I63: 75.33 | J63: 45.20 | K63: 68.40
A64: 62 | B64: 1 | C64: 胡安印 | D64: 52000205548 | E64: 肝胆外科医师 | F64: 13 | G64: 64 | H64: 25.60 | I64: 86.00 | J64: 51.60 | K64: 77.20 | L64: 1 | M64: 是
A65: 63 | B65: 3 | C65: 文雪 | D65: 52000205608 | E65: 整形烧伤科医师 | F65: 14 | G65: 54 | H65: 21.60 | I65: 85.67 | J65: 51.40 | K65: 73.00 | L65: 1 | M65: 是
A66: 64 | B66: 1 | C66: 唐二千 | D66: 52000205604 | E66: 整形烧伤科医师 | F66: 14 | G66: 54 | H66: 21.60 | I66: 78.00 | J66: 46.80 | K66: 68.40
A67: 65 | B67: 缺考 | C67: 余玉勇 | D67: 52000205558 | E67: 整形烧伤科医师 | F67: 14 | G67: 60 | H67: =G67*0.4 -> 24.00 | I67: 缺考 | J67: 缺考 | K67: =H67 -> 24.00
A68: 66 | B68: 4 | C68: 潘贵城 | D68: 52000205636 | E68: 胸外科医师 | F68: 15 | G68: 72 | H68: 28.80 | I68: 85.33 | J68: =I68*0.6 -> 51.20 | K68: =J68+H68 -> 80.00 | L68: 1 | M68: 是
A69: 67 | B69: 3 | C69: 胡兴 | D69: 52000205553 | E69: 胸外科医师 | F69: 15 | G69: 62 | H69: 24.80 | I69: 73.00 | J69: =I69*0.6 -> 43.80 | K69: =J69+H69 -> 68.60
A70: 68 | B70: 2 | C70: 李耀保 | D70: 52000205520 | E70: 胸外科医师 | F70: 15 | G70: 60 | H70: 24.00 | I70: 70.67 | J70: =I70*0.6 -> 42.40 | K70: =J70+H70 -> 66.40
A71: 69 | B71: 缺考 | C71: 刘阳 | D71: 52000205603 | E71: 胸外科医师 | F71: 15 | G71: 64 | H71: 25.60 | I71: 缺考 | J71: 缺考 | K71: =H71 -> 25.60
A72: 70 | B72: 2 | C72: 张建松 | D72: 52000205611 | E72: 胃肠外科医师 | F72: 16 | G72: 66 | H72: 26.40 | I72: 86.00 | J72: =I72*0.6 -> 51.60 | K72: =J72+H72 -> 78.00 | L72: 1 | M72: 是
A73: 71 | B73: 1 | C73: 黄伊鑫 | D73: 52000205635 | E73: 胃肠外科医师 | F73: 16 | G73: 78 | H73: 31.20 | I73: 74.33 | J73: =I73*0.6 -> 44.60 | K73: =J73+H73 -> 75.80
A74: 72 | B74: 缺考 | C74: 陈俊豪 | D74: 52000205511 | E74: 胃肠外科医师 | F74: 16 | G74: 50 | H74: 20.00 | I74: 缺考 | J74: 缺考 | K74: =H74 -> 20.00
A75: 73 | B75: 1 | C75: 郑立 | D75: 52000205614 | E75: 神经外科医师 | F75: 17 | G75: 70 | H75: 28.00 | I75: 86.67 | J75: =I75*0.6 -> 52.00 | K75: =J75+H75 -> 80.00 | L75: 1 | M75: 是
A76: 74 | B76: 2 | C76: 郭照飞 | D76: 52000205543 | E76: 神经外科医师 | F76: 17 | G76: 68 | H76: 27.20 | I76: 85.33 | J76: 51.20 | K76: 78.40 | L76: 2 | M76: 是
A77: 75 | B77: 5 | C77: 秦佳 | D77: 52000205515 | E77: 骨科医师 | F77: 18 | G77: 68 | H77: 27.20 | I77: 90.00 | J77: 54.00 | K77: 81.20 | L77: 1 | M77: 是
A78: 76 | B78: 6 | C78: 黄永恒 | D78: 52000205516 | E78: 骨科医师 | F78: 18 | G78: 72 | H78: 28.80 | I78: 86.67 | J78: 52.00 | K78: 80.80 | L78: 2 | M78: 是
A79: 77 | B79: 4 | C79: 徐红 | D79: 52000205501 | E79: 骨科医师 | F79: 18 | G79: 70 | H79: 28.00 | I79: 85.33 | J79: 51.20 | K79: 79.20 | L79: 3 | M79: 是
A80: 78 | B80: 3 | C80: 袁照 | D80: 52000205624 | E80: 骨科医师 | F80: 18 | G80: 68 | H80: 27.20 | I80: 77.33 | J80: 46.40 | K80: 73.60
A81: 79 | B81: 7 | C81: 周金海 | D81: 52000205507 | E81: 骨科医师 | F81: 18 | G81: 64 | H81: 25.60 | I81: 78.00 | J81: 46.80 | K81: 72.40
A82: 80 | B82: 2 | C82: 杨家其 | D82: 52000205615 | E82: 骨科医师 | F82: 18 | G82: 64 | H82: 25.60 | I82: 76.33 | J82: 45.80 | K82: 71.40
A83: 81 | B83: 1 | C83: 杨龙江 | D83: 52000205523 | E83: 骨科医师 | F83: 18 | G83: 64 | H83: 25.60 | I83: 76.00 | J83: 45.60 | K83: 71.20
A84: 82 | B84: 缺考 | C84: 包广龙 | D84: 52000205621 | E84: 骨科医师 | F84: 18 | G84: 64 | H84: 25.60 | I84: 缺考 | J84: 缺考 | K84: =H84 -> 25.60
A85: 83 | B85: 2 | C85: 瞿友花 | D85: 52000206305 | E85: 妇科医师 | F85: 19 | G85: 57 | H85: 22.80 | I85: 86.33 | J85: =I85*0.6 -> 51.80 | K85: =J85+H85 -> 74.60 | L85: 1 | M85: 是
A86: 84 | B86: 3 | C86: 陈沙 | D86: 52000206328 | E86: 妇科医师 | F86: 19 | G86: 57 | H86: 22.80 | I86: 78.00 | J86: 46.80 | K86: 69.60
A87: 85 | B87: 1 | C87: 李江艳 | D87: 52000206306 | E87: 妇科医师 | F87: 19 | G87: 57 | H87: 22.80 | I87: 76.67 | J87: 46.00 | K87: 68.80
A88: 86 | B88: 11 | C88: 章哲凡 | D88: 52000206308 | E88: 产科医师 | F88: 20 | G88: 61 | H88: 24.40 | I88: 87.00 | J88: 52.20 | K88: 76.60 | L88: 1 | M88: 是
A89: 87 | B89: 10 | C89: 王珊珊 | D89: 52000206315 | E89: 产科医师 | F89: 20 | G89: 58 | H89: 23.20 | I89: 88.67 | J89: 53.20 | K89: 76.40 | L89: 2 | M89: 是
A90: 88 | B90: 12 | C90: 史杰 | D90: 52000206304 | E90: 产科医师 | F90: 20 | G90: 57 | H90: 22.80 | I90: 88.67 | J90: 53.20 | K90: 76.00 | L90: 3 | M90: 是
A91: 89 | B91: 9 | C91: 汤世望 | D91: 52000206307 | E91: 产科医师 | F91: 20 | G91: 58 | H91: 23.20 | I91: 88.00 | J91: 52.80 | K91: 76.00 | L91: 3 | M91: 是
A92: 90 | B92: 8 | C92: 王丽 | D92: 52000206309 | E92: 产科医师 | F92: 20 | G92: 57 | H92: 22.80 | I92: 79.00 | J92: 47.40 | K92: 70.20
A93: 91 | B93: 6 | C93: 王玉淳 | D93: 52000206310 | E93: 产科医师 | F93: 20 | G93: 51 | H93: 20.40 | I93: 79.67 | J93: 47.80 | K93: 68.20
A94: 92 | B94: 4 | C94: 皮鑫 | D94: 52000206317 | E94: 产科医师 | F94: 20 | G94: 53 | H94: 21.20 | I94: 78.00 | J94: 46.80 | K94: 68.00
A95: 93 | B95: 7 | C95: 匡奇梅 | D95: 52000206312 | E95: 产科医师 | F95: 20 | G95: 54 | H95: 21.60 | I95: 76.33 | J95: 45.80 | K95: 67.40
A96: 94 | B96: 5 | C96: 张屿璠 | D96: 52000206327 | E96: 产科医师 | F96: 20 | G96: 53 | H96: 21.20 | I96: 76.67 | J96: 46.00 | K96: 67.20
A97: 95 | B97: 3 | C97: 杨珊 | D97: 52000206321 | E97: 产科医师 | F97: 20 | G97: 51 | H97: 20.40 | I97: 78.00 | J97: 46.80 | K97: 67.20
A98: 96 | B98: 2 | C98: 张菊 | D98: 52000206322 | E98: 产科医师 | F98: 20 | G98: 50 | H98: 20.00 | I98: 77.00 | J98: 46.20 | K98: 66.20
A99: 97 | B99: 缺考 | C99: 罗锦 | D99: 52000206311 | E99: 产科医师 | F99: 20 | G99: 57 | H99: 22.80 | I99: 缺考 | J99: 缺考 | K99: =H99 -> 22.80
A100: 98 | B100: 2 | C100: 刘双 | D100: 52000206404 | E100: 新生儿科医师 | F100: 21 | G100: 68 | H100: 27.20 | I100: 85.00 | J100: =I100*0.6 -> 51.00 | K100: =J100+H100 -> 78.20 | L100: 1 | M100: 是
A101: 99 | B101: 1 | C101: 吴小倩 | D101: 52000206409 | E101: 新生儿科医师 | F101: 21 | G101: 60 | H101: 24.00 | I101: 82.67 | J101: 49.60 | K101: 73.60 | L101: 2 | M101: 是
A102: 100 | B102: 1 | C102: 程立思 | D102: 52000206415 | E102: PICU医师 | F102: 22 | G102: 68 | H102: 27.20 | I102: 87.00 | J102: 52.20 | K102: 79.40 | L102: 1 | M102: 是
A103: 101 | B103: 1 | C103: 陈银鑫 | D103: 52000206416 | E103: 儿科医师 | F103: 23 | G103: 78 | H103: 31.20 | I103: 85.33 | J103: 51.20 | K103: 82.40 | L103: 1 | M103: 是
A104: 102 | B104: 4 | C104: 赵芳 | D104: 52000206414 | E104: 儿科医师 | F104: 23 | G104: 64 | H104: 25.60 | I104: 85.33 | J104: 51.20 | K104: 76.80 | L104: 2 | M104: 是
A105: 103 | B105: 5 | C105: 邹秋洁 | D105: 52000206402 | E105: 儿科医师 | F105: 23 | G105: 70 | H105: 28.00 | I105: 76.00 | J105: 45.60 | K105: 73.60
A106: 104 | B106: 3 | C106: 浦艳琴 | D106: 52000206401 | E106: 儿科医师 | F106: 23 | G106: 60 | H106: 24.00 | I106: 75.33 | J106: 45.20 | K106: 69.20
A107: 105 | B107: 缺考 | C107: 彭小青 | D107: 52000206413 | E107: 儿科医师 | F107: 23 | G107: 82 | H107: 32.80 | I107: 缺考 | J107: 缺考 | K107: =H107 -> 32.80
A108: 106 | B108: 3 | C108: 王艳云 | D108: 52000205930 | E108: 神经内科医师 | F108: 25 | G108: 78 | H108: 31.20 | I108: 83.33 | J108: =I108*0.6 -> 50.00 | K108: =J108+H108 -> 81.20 | L108: 1 | M108: 是
A109: 107 | B109: 2 | C109: 冯晶 | D109: 52000205939 | E109: 神经内科医师 | F109: 25 | G109: 78 | H109: 31.20 | I109: 79.00 | J109: 47.40 | K109: 78.60
A110: 108 | B110: 1 | C110: 杨钦单 | D110: 52000205931 | E110: 神经内科医师 | F110: 25 | G110: 78 | H110: 31.20 | I110: 77.00 | J110: 46.20 | K110: 77.40
A111: 109 | B111: 2 | C111: 龙琼 | D111: 52000206339 | E111: 耳鼻咽喉科医师 | F111: 26 | G111: 79 | H111: 31.60 | I111: 91.33 | J111: 54.80 | K111: 86.40 | L111: 1 | M111: 是
A112: 110 | B112: 7 | C112: 李淑娟 | D112: 52000206330 | E112: 耳鼻咽喉科医师 | F112: 26 | G112: 79 | H112: 31.60 | I112: 90.67 | J112: 54.40 | K112: 86.00 | L112: 2 | M112: 是
A113: 111 | B113: 1 | C113: 谭诗丝 | D113: 52000206337 | E113: 耳鼻咽喉科医师 | F113: 26 | G113: 69 | H113: 27.60 | I113: 87.00 | J113: 52.20 | K113: 79.80 | L113: 3 | M113: 是
A114: 112 | B114: 8 | C114: 陈丽 | D114: 52000206336 | E114: 耳鼻咽喉科医师 | F114: 26 | G114: 81 | H114: 32.40 | I114: 75.67 | J114: 45.40 | K114: 77.80
A115: 113 | B115: 3 | C115: 龚世丹 | D115: 52000206332 | E115: 耳鼻咽喉科医师 | F115: 26 | G115: 75 | H115: 30.00 | I115: 78.67 | J115: 47.20 | K115: 77.20
A116: 114 | B116: 9 | C116: 张元霞 | D116: 52000206335 | E116: 耳鼻咽喉科医师 | F116: 26 | G116: 79 | H116: 31.60 | I116: 74.67 | J116: 44.80 | K116: 76.40
A117: 115 | B117: 5 | C117: 王敏 | D117: 52000206340 | E117: 耳鼻咽喉科医师 | F117: 26 | G117: 74 | H117: 29.60 | I117: 76.67 | J117: 46.00 | K117: 75.60
A118: 116 | B118: 6 | C118: 毛万妮 | D118: 52000206329 | E118: 耳鼻咽喉科医师 | F118: 26 | G118: 74 | H118: 29.60 | I118: 76.33 | J118: 45.80 | K118: 75.40
A119: 117 | B119: 缺考 | C119: 朱穆玛 | D119: 52000206331 | E119: 耳鼻咽喉科医师 | F119: 26 | G119: 83 | H119: 33.20 | I119: 缺考 | J119: 缺考 | K119: =H119 -> 33.20
A120: 118 | B120: 2 | C120: 宁欣 | D120: 52000206147 | E120: 眼科医师 | F120: 27 | G120: 84 | H120: 33.60 | I120: 88.00 | J120: =I120*0.6 -> 52.80 | K120: =J120+H120 -> 86.40 | L120: 1 | M120: 是
A121: 119 | B121: 1 | C121: 陈千 | D121: 52000206153 | E121: 眼科医师 | F121: 27 | G121: 79 | H121: 31.60 | I121: 78.33 | J121: 47.00 | K121: 78.60
A122: 120 | B122: 2 | C122: 张煜晗 | D122: 52000206205 | E122: 口腔科医师 | F122: 28 | G122: 66 | H122: 26.40 | I122: 88.00 | J122: 52.80 | K122: 79.20 | L122: 1 | M122: 是
A123: 121 | B123: 3 | C123: 鲁芳芳 | D123: 52000206204 | E123: 口腔科医师 | F123: 28 | G123: 68 | H123: 27.20 | I123: 81.67 | J123: 49.00 | K123: 76.20
A124: 122 | B124: 1 | C124: 刘艳 | D124: 52000206210 | E124: 口腔科医师 | F124: 28 | G124: 68 | H124: 27.20 | I124: 81.33 | J124: 48.80 | K124: 76.00
A125: 123 | B125: 2 | C125: 匡宏波 | D125: 52000205725 | E125: 重症医学科医师 | F125: 29 | G125: 84 | H125: 33.60 | I125: 86.33 | J125: 51.80 | K125: 85.40 | L125: 1 | M125: 是
A126: 124 | B126: 4 | C126: 罗莉 | D126: 52000205709 | E126: 重症医学科医师 | F126: 29 | G126: 74 | H126: 29.60 | I126: 84.67 | J126: 50.80 | K126: 80.40 | L126: 2 | M126: 是
A127: 125 | B127: 3 | C127: 徐燕 | D127: 52000205809 | E127: 重症医学科医师 | F127: 29 | G127: 70 | H127: 28.00 | I127: 84.67 | J127: 50.80 | K127: 78.80 | L127: 3 | M127: 是
A128: 126 | B128: 1 | C128: 唐华丽 | D128: 52000205756 | E128: 重症医学科医师 | F128: 29 | G128: 64 | H128: 25.60 | I128: 70.67 | J128: 42.40 | K128: 68.00
A129: 127 | B129: 1 | C129: 周文美 | D129: 52000206216 | E129: 康复科医师 | F129: 31 | G129: 83 | H129: 33.20 | I129: 85.00 | J129: 51.00 | K129: 84.20 | L129: 1 | M129: 是
A130: 128 | B130: 1 | C130: 杜航 | D130: 52000206222 | E130: 介入科医师 | F130: 32 | G130: 82.5 | H130: 33.00 | I130: 85.67 | J130: 51.40 | K130: 84.40 | L130: 1 | M130: 是
A131: 129 | B131: 2 | C131: 何欣燃 | D131: 52000206225 | E131: 介入科医师 | F131: 32 | G131: 83 | H131: =G131*0.4 -> 33.20 | I131: 84.33 | J131: 50.60 | K131: 83.80 | L131: 2 | M131: 是
A132: 130 | B132: 1 | C132: 李正霞 | D132: 52000206301 | E132: 急诊医学科医师 | F132: 33 | G132: 80 | H132: 32.00 | I132: 84.33 | J132: 50.60 | K132: 82.60 | L132: 1 | M132: 是
A133: 131 | B133: 2 | C133: 周敏 | D133: 52000206302 | E133: 急诊医学科医师 | F133: 33 | G133: 72 | H133: 28.80 | I133: 85.33 | J133: 51.20 | K133: 80.00 | L133: 2 | M133: 是
A134: 132 | B134: 缺考 | C134: 曹国芬 | D134: 52000206303 | E134: 急诊医学科医师 | F134: 33 | G134: 82 | H134: 32.80 | I134: 缺考 | J134: 缺考 | K134: =H134 -> 32.80
A135: 133 | B135: 4 | C135: 曾欢欢 | D135: 52000206144 | E135: 皮肤科医师 | F135: 34 | G135: 84 | H135: 33.60 | I135: 86.67 | J135: =I135*0.6 -> 52.00 | K135: =J135+H135 -> 85.60 | L135: 1 | M135: 是
A136: 134 | B136: 3 | C136: 李远英 | D136: 52000206146 | E136: 皮肤科医师 | F136: 34 | G136: 80 | H136: 32.00 | I136: 86.00 | J136: =I136*0.6 -> 51.60 | K136: =J136+H136 -> 83.60 | L136: 2 | M136: 是
A137: 135 | B137: 1 | C137: 喻光莲 | D137: 52000206143 | E137: 皮肤科医师 | F137: 34 | G137: 84 | H137: 33.60 | I137: 78.33 | J137: =I137*0.6 -> 47.00 | K137: =J137+H137 -> 80.60
A138: 136 | B138: 缺考 | C138: 林越 | D138: 52000206141 | E138: 皮肤科医师 | F138: 34 | G138: 72 | H138: 28.80 | I138: 缺考 | J138: 缺考 | K138: =H138 -> 28.80
A139: 137 | B139: 1 | C139: 邱韵洁 | D139: 52000205751 | E139: 输血科医师 | F139: 35 | G139: 78 | H139: 31.20 | I139: 83.67 | J139: =I139*0.6 -> 50.20 | K139: =J139+H139 -> 81.40 | L139: 1 | M139: 是
A140: 138 | B140: 1 | C140: 蔡迪先 | D140: 52000206202 | E140: 精神心理科医师 | F140: 36 | G140: 77.5 | H140: 31.00 | I140: 85.00 | J140: =I140*0.6 -> 51.00 | K140: =J140+H140 -> 82.00 | L140: 1 | M140: 是
A141: 139 | B141: 3 | C141: 邓明明 | D141: 52000205903 | E141: 肿瘤科医师 | F141: 37 | G141: 86 | H141: 34.40 | I141: 71.33 | J141: =I141*0.6 -> 42.80 | K141: =J141+H141 -> 77.20 | L141: 1 | M141: 是
A142: 140 | B142: 1 | C142: 陈旭梅 | D142: 52000205901 | E142: 肿瘤科医师 | F142: 37 | G142: 80 | H142: 32.00 | I142: 71.67 | J142: =I142*0.6 -> 43.00 | K142: =J142+H142 -> 75.00 | L142: 2 | M142: 是
A143: 141 | B143: 缺考 | C143: 张若荣 | D143: 52000205915 | E143: 肿瘤科医师 | F143: 37 | G143: 82 | H143: 32.80 | I143: 缺考 | J143: 缺考 | K143: =H143 -> 32.80
A144: 142 | B144: 缺考 | C144: 刘小宇 | D144: 52000205916 | E144: 肿瘤科医师 | F144: 37 | G144: 79 | H144: 31.60 | I144: 缺考 | J144: 缺考 | K144: =H144 -> 31.60
A145: 143 | B145: 缺考 | C145: 邓倩月 | D145: 52000205907 | E145: 肿瘤科医师 | F145: 37 | G145: 77 | H145: 30.80 | I145: 缺考 | J145: 缺考 | K145: =H145 -> 30.80
A146: 144 | B146: 1 | C146: 陈超 | D146: 52000205817 | E146: 感染科医师 | F146: 38 | G146: 74 | H146: 29.60 | I146: 88.33 | J146: =I146*0.6 -> 53.00 | K146: =J146+H146 -> 82.60 | L146: 1 | M146: 是
A147: 145 | B147: 2 | C147: 王艳霞 | D147: 52000205750 | E147: 感染科医师 | F147: 38 | G147: 84 | H147: 33.60 | I147: 80.00 | J147: 48.00 | K147: 81.60
A148: 146 | B148: 3 | C148: 周文秀 | D148: 52000205801 | E148: 感染科医师 | F148: 38 | G148: 66 | H148: 26.40 | I148: 80.67 | J148: 48.40 | K148: 74.80
A149: 147 | B149: 1 | C149: 张艳 | D149: 52000205820 | E149: 全科医学科医师 | F149: 39 | G149: 82 | H149: 32.80 | I149: 80.00 | J149: 48.00 | K149: 80.80 | L149: 1 | M149: 是
A150: 148 | B150: 2 | C150: 刘颖 | D150: 52000205707 | E150: 全科医学科医师 | F150: 39 | G150: 68 | H150: 27.20 | I150: 88.00 | J150: 52.80 | K150: 80.00
A151: 149 | B151: 3 | C151: 刘秀美 | D151: 52000205813 | E151: 全科医学科医师 | F151: 39 | G151: 70 | H151: 28.00 | I151: 75.67 | J151: 45.40 | K151: 73.40
A152: 150 | B152: 4 | C152: 贺欢欢 | D152: 52000205821 | E152: 全科医学科医师 | F152: 39 | G152: 68 | H152: 27.20 | I152: 72.33 | J152: 43.40 | K152: 70.60
A153: 151 | B153: 2 | C153: 谢青 | D153: 52000205926 | E153: 中医科医师 | F153: 40 | G153: 88 | H153: 35.20 | I153: 89.00 | J153: 53.40 | K153: 88.60 | L153: 1 | M153: 是
A154: 152 | B154: 1 | C154: 丁一凡 | D154: 52000205917 | E154: 中医科医师 | F154: 40 | G154: 84 | H154: 33.60 | I154: 80.00 | J154: 48.00 | K154: 81.60
A155: 153 | B155: 缺考 | C155: 徐玮璐 | D155: 52000205923 | E155: 中医科医师 | F155: 40 | G155: 90 | H155: 36.00 | I155: 缺考 | J155: 缺考 | K155: =H155 -> 36.00
A156: 154 | B156: 1 | C156: 章雷 | D156: 52000206333 | E156: 体检中心医师02 | F156: 42 | G156: 74 | H156: 29.60 | I156: 84.67 | J156: =I156*0.6 -> 50.80 | K156: =J156+H156 -> 80.40 | L156: 1 | M156: 是
A157: 155 | B157: 1 | C157: 吴志远 | D157: 52000206206 | E157: 体检中心医师03 | F157: 43 | G157: 66 | H157: 26.40 | I157: 72.33 | J157: 43.40 | K157: 69.80
A158: 156 | B158: 3 | C158: 王梦娜 | D158: 52000206019 | E158: 药学部药师 | F158: 44 | G158: 78 | H158: 31.20 | I158: 87.67 | J158: 52.60 | K158: 83.80 | L158: 1 | M158: 是
A159: 157 | B159: 1 | C159: 杨黎 | D159: 52000206041 | E159: 药学部药师 | F159: 44 | G159: 76 | H159: 30.40 | I159: 79.67 | J159: 47.80 | K159: 78.20
A160: 158 | B160: 2 | C160: 胡珊珊 | D160: 52000206013 | E160: 药学部药师 | F160: 44 | G160: 74 | H160: 29.60 | I160: 80.67 | J160: 48.40 | K160: 78.00
A161: 159 | B161: 1 | C161: 席敏 | D161: 52000206346 | E161: 检验科医师 | F161: 45 | G161: 66 | H161: 26.40 | I161: 85.00 | J161: 51.00 | K161: 77.40 | L161: 1 | M161: 是
A162: 160 | B162: 2 | C162: 胡鑫 | D162: 52000206341 | E162: 检验科医师 | F162: 45 | G162: 62 | H162: 24.80 | I162: 83.67 | J162: 50.20 | K162: 75.00 | L162: 2 | M162: 是
A163: 161 | B163: 2 | C163: 祝丹丹 | D163: 52000205944 | E163: 影像科医师 | F163: 46 | G163: 66 | H163: 26.40 | I163: 85.67 | J163: 51.40 | K163: 77.80 | L163: 1 | M163: 是
A164: 162 | B164: 7 | C164: 靳易北 | D164: 52000205952 | E164: 影像科医师 | F164: 46 | G164: 62 | H164: 24.80 | I164: 84.67 | J164: 50.80 | K164: 75.60 | L164: 2 | M164: 是
A165: 163 | B165: 5 | C165: 范竞 | D165: 52000205959 | E165: 影像科医师 | F165: 46 | G165: 72 | H165: 28.80 | I165: 78.00 | J165: 46.80 | K165: 75.60 | L165: 3 | M165: 是
A166: 164 | B166: 4 | C166: 倪德全 | D166: 52000205956 | E166: 影像科医师 | F166: 46 | G166: 60 | H166: 24.00 | I166: 84.67 | J166: 50.80 | K166: 74.80
A167: 165 | B167: 8 | C167: 姜雪芳 | D167: 52000205953 | E167: 影像科医师 | F167: 46 | G167: 70 | H167: 28.00 | I167: 77.33 | J167: 46.40 | K167: 74.40
A168: 166 | B168: 3 | C168: 吴雪 | D168: 52000205947 | E168: 影像科医师 | F168: 46 | G168: 68 | H168: 27.20 | I168: 75.67 | J168: 45.40 | K168: 72.60
A169: 167 | B169: 1 | C169: 梁钰晖 | D169: 52000205957 | E169: 影像科医师 | F169: 46 | G169: 56 | H169: 22.40 | I169: 66.67 | J169: 40.00 | K169: 62.40
A170: 168 | B170: 缺考 | C170: 孟婷 | D170: 52000205949 | E170: 影像科医师 | F170: 46 | G170: 80 | H170: 32.00 | I170: 缺考 | J170: 缺考 | K170: =H170 -> 32.00
A171: 169 | B171: 缺考 | C171: 吴文江 | D171: 52000205954 | E171: 影像科医师 | F171: 46 | G171: 70 | H171: 28.00 | I171: 缺考 | J171: 缺考 | K171: =H171 -> 28.00
A172: 170 | B172: 1 | C172: 欧阳春泉 | D172: 52000206158 | E172: 心电图科医师 | F172: 48 | G172: 67 | H172: 26.80 | I172: 87.67 | J172: =I172*0.6 -> 52.60 | K172: =J172+H172 -> 79.40 | L172: 1 | M172: 是
A173: 171 | B173: 3 | C173: 王薇 | D173: 52000206159 | E173: 心电图科医师 | F173: 48 | G173: 66 | H173: 26.40 | I173: 72.00 | J173: 43.20 | K173: 69.60
A174: 172 | B174: 2 | C174: 殷洪 | D174: 52000206160 | E174: 心电图科医师 | F174: 48 | G174: 62 | H174: 24.80 | I174: 71.33 | J174: 42.80 | K174: 67.60
A175: 173 | B175: 1 | C175: 张慧 | D175: 52000205945 | E175: 超声科医师 | F175: 49 | G175: 78 | H175: 31.20 | I175: 84.67 | J175: 50.80 | K175: 82.00 | L175: 1 | M175: 是
A176: 174 | B176: 1 | C176: 甘露 | D176: 52000206418 | E176: 病理科医师 | F176: 50 | G176: 65 | H176: 26.00 | I176: 85.33 | J176: 51.20 | K176: 77.20 | L176: 1 | M176: 是
A177: 175 | B177: 2 | C177: 付定强 | D177: 52000206118 | E177: 麻醉科医师 | F177: 51 | G177: 100 | H177: 40.00 | I177: 91.67 | J177: 55.00 | K177: 95.00 | L177: 1 | M177: 是
A178: 176 | B178: 3 | C178: 任加琴 | D178: 52000206113 | E178: 麻醉科医师 | F178: 51 | G178: 78 | H178: 31.20 | I178: 90.00 | J178: 54.00 | K178: 85.20 | L178: 2 | M178: 是
A179: 177 | B179: 7 | C179: 蒋甜 | D179: 52000206127 | E179: 麻醉科医师 | F179: 51 | G179: 80 | H179: 32.00 | I179: 88.33 | J179: 53.00 | K179: 85.00 | L179: 3 | M179: 是
A180: 178 | B180: 8 | C180: 高榜俊 | D180: 52000206138 | E180: 麻醉科医师 | F180: 51 | G180: 82 | H180: 32.80 | I180: 86.67 | J180: 52.00 | K180: 84.80 | L180: 4 | M180: 是
A181: 179 | B181: 13 | C181: 张由 | D181: 52000206111 | E181: 麻醉科医师 | F181: 51 | G181: 79 | H181: 31.60 | I181: 86.00 | J181: 51.60 | K181: 83.20 | L181: 5 | M181: 是
A182: 180 | B182: 1 | C182: 高兴梅 | D182: 52000206129 | E182: 麻醉科医师 | F182: 51 | G182: 81 | H182: 32.40 | I182: 76.67 | J182: 46.00 | K182: 78.40
A183: 181 | B183: 14 | C183: 朱睿 | D183: 52000206140 | E183: 麻醉科医师 | F183: 51 | G183: 77 | H183: 30.80 | I183: 78.67 | J183: 47.20 | K183: 78.00
A184: 182 | B184: 10 | C184: 李霞 | D184: 52000206131 | E184: 麻醉科医师 | F184: 51 | G184: 76 | H184: 30.40 | I184: 76.67 | J184: 46.00 | K184: 76.40
A185: 183 | B185: 6 | C185: 宋梅 | D185: 52000206110 | E185: 麻醉科医师 | F185: 51 | G185: 78 | H185: 31.20 | I185: 75.33 | J185: 45.20 | K185: 76.40
A186: 184 | B186: 12 | C186: 邓乙可 | D186: 52000206128 | E186: 麻醉科医师 | F186: 51 | G186: 78 | H186: 31.20 | I186: 75.33 | J186: 45.20 | K186: 76.40
A187: 185 | B187: 16 | C187: 曾令先 | D187: 52000206101 | E187: 麻醉科医师 | F187: 51 | G187: 78 | H187: 31.20 | I187: 75.00 | J187: 45.00 | K187: 76.20
A188: 186 | B188: 9 | C188: 姚俊 | D188: 52000206114 | E188: 麻醉科医师 | F188: 51 | G188: 74 | H188: 29.60 | I188: 75.33 | J188: 45.20 | K188: 74.80
A189: 187 | B189: 4 | C189: 周子涵 | D189: 52000206115 | E189: 麻醉科医师 | F189: 51 | G189: 74 | H189: 29.60 | I189: 74.00 | J189: 44.40 | K189: 74.00
A190: 188 | B190: 缺考 | C190: 王佐焕 | D190: 52000206106 | E190: 麻醉科医师 | F190: 51 | G190: 97 | H190: 38.80 | I190: 缺考 | J190: 缺考 | K190: =H190 -> 38.80
A191: 189 | B191: 缺考 | C191: 李佩馨 | D191: 52000206120 | E191: 麻醉科医师 | F191: 51 | G191: 75 | H191: 30.00 | I191: 缺考 | J191: 缺考 | K191: =H191 -> 30.00
A192: 190 | B192: 缺考 | C192: 张乃心 | D192: 52000206122 | E192: 麻醉科医师 | F192: 51 | G192: 74 | H192: 29.60 | I192: 缺考 | J192: 缺考 | K192: =H192 -> 29.60
A193: 191 | B193: 2 | C193: 张贵兰 | D193: 52000100752 | E193: 党委办公室 | F193: 53 | G193: 72 | H193: 28.80 | I193: 89.33 | J193: =I193*0.6 -> 53.60 | K193: =J193+H193 -> 82.40 | L193: 1 | M193: 是
A194: 192 | B194: 3 | C194: 张菊花 | D194: 52000103245 | E194: 党委办公室 | F194: 53 | G194: 65 | H194: 26.00 | I194: 89.33 | J194: 53.60 | K194: 79.60 | L194: 2 | M194: 是
A195: 193 | B195: 5 | C195: 郑莉 | D195: 52000204327 | E195: 党委办公室 | F195: 53 | G195: 76 | H195: =G195*0.4 -> 30.40 | I195: 78.00 | J195: 46.80 | K195: 77.20
A196: 194 | B196: 4 | C196: 吴桐 | D196: 52000204117 | E196: 党委办公室 | F196: 53 | G196: 64 | H196: 25.60 | I196: 81.33 | J196: 48.80 | K196: 74.40
A197: 195 | B197: 6 | C197: 王任英 | D197: 52000103056 | E197: 党委办公室 | F197: 53 | G197: 68 | H197: 27.20 | I197: 77.33 | J197: 46.40 | K197: 73.60
A198: 196 | B198: 7 | C198: 林安静 | D198: 52000102634 | E198: 党委办公室 | F198: 53 | G198: 69 | H198: 27.60 | I198: 75.67 | J198: 45.40 | K198: 73.00
A199: 197 | B199: 缺考 | C199: 阳永馨 | D199: 52000100903 | E199: 党委办公室 | F199: 53 | G199: 64 | H199: 25.60 | I199: 缺考 | J199: 缺考 | K199: =H199 -> 25.60
A200: 198 | B200: 8 | C200: 盛男 | D200: 52000204321 | E200: 院办公室 | F200: 54 | G200: 66 | H200: 26.40 | I200: 92.67 | J200: =I200*0.6 -> 55.60 | K200: =J200+H200 -> 82.00 | L200: 1 | M200: 是
... 89 more rows
